Cogmind - Beta 14 @@@ ROGUE MODE // 2025.03.01 @ 09:52:32 Player: mix Result: Destroyed by G-47 Trooper with Particle Gun Performance ------------- Evolutions (0) 0 Regions Visited (1) 200 Robots Destroyed (3) 15 Value Destroyed (54) 54 Prototype IDs (0) 0 Alien Tech Used (0) 0 Bonus (0) 0 TOTAL SCORE: 269 Bonus ------- None Cogmind --------- Core Integrity 0/250 Matter 247/300 Energy 100/100 System Corruption 0% Temperature Cool (15) Movement Core (700) Ox13 Location -10/Materials Parts ------- > --- POWER (1) -------- (None) > --- PROPULSION (2) --- (None) > --- UTILITY (2) ------ High-capacity Storage Unit > --- WEAPON (2) ------- (None) > --- INVENTORY (20) --- (None) Peak State ------------ > --- POWER ------------ Light Ion Engine > --- PROPULSION ------- Light Treads Light Treads > --- UTILITY ---------- Small Storage Unit High-capacity Storage Unit > --- WEAPON ----------- Assault Rifle Light Assault Rifle > --- INVENTORY -------- (None) [Rating: 7] Favorites ----------- Power Light Ion Engine Engine Light Ion Engine Propulsion Light Treads Treads Light Treads Utility High-capacity Storage Unit Storage High-capacity Storage Unit Weapon Assault Rifle Ballistic Gun Assault Rifle Build | -11 -10 ------- Run | Yrd Mat Slots Evolved . | . . Power . | . . Propulsion . | . . Utility . | . . Weapon . | . . Parts Attached 7 | 6 1 Power 1 | 1 . Engine 1 | 1 . Core . | . . Reactor . | . . Propulsion 2 | 2 . Treads 2 | 2 . Leg . | . . Wheel . | . . Hover . | . . Flight . | . . Utility 2 | 1 1 Device . | . . Storage 2 | 1 1 Processor . | . . Hackware . | . . Protection . | . . Artifact . | . . Weapon 2 | 2 . Energy Gun . | . . Energy Cannon . | . . Ballistic Gun 2 | 2 . Ballistic Cannon . | . . Launcher . | . . Special Weapon . | . . Impact Weapon . | . . Slashing Weapon . | . . Piercing Weapon . | . . Special Melee Weapon . | . . Unidentified Prototypes . | . . Parts Lost 5 | . 5 Power 1 | . 1 Propulsion 2 | . 2 Utility . | . . Weapon 2 | . 2 Highest Loss Streak 5 | . 5 To Critical Strikes . | . . Average Slot Usage (%) 78 | . 78 Engine 12 | . 12 Treads 26 | . 26 Storage 14 | . 14 Ballistic Gun 25 | . 25 Peak Build Rating 7 | 6 7 Average Rating 5 | 3 5 On Entrance 3 | . 6 Naked Turns . | . . Heaviest Build 46 | 11 46 Greatest Support 40 | 40 40 Greatest Overweight (x) 1 | . 1 Average Overweight (x) . | . . Largest Inventory Capacity 20 | 8 20 Average Capacity 17 | 6 19 Most Carried 5 | 5 1 Average Carried . | . . Final Capacity 20 | 8 20 Final Carried . | . . Class Distribution -------------------- 100% | Mutant Dominant Class ---------------- Mutant | -10/Materials Resources | -11 -10 ----------- Run | Yrd Mat Matter Collected 238 | 238 . Remotely . | . . Salvage Created 54 | . 54 Parts 3 | . 3 Haulers Intercepted . | . . Recyclers Shooed . | . . Parts Field Recycled . | . . Retrieved Matter . | . . Parts Self-Destructed . | . . Prevented . | . . Kills | -11 -10 ------- Run | Yrd Mat Combat Hostiles Destroyed 3 | . 3 Guns 3 | . 3 Classes Destroyed 2 | . 2 Swarmer 2 | . 2 Grunt 1 | . 1 Best Kill Streak 3 | . 3 Combat Bots Only 3 | . 3 Max Kills in Single Turn 1 | . 1 Gunslinging . | . . Exploded . | . . Melee . | . . Uniques/NPCs Destroyed . | . . Combat | -11 -10 -------- Run | Yrd Mat Hostile Shots Fired 110 | . 110 Missed 33 | . 33 Damage Taken 829 | . 829 Core 264 | . 264 Absorbed by Shields . | . . Core Remaining (%) 100 | 100 . Volleys Fired 12 | . 12 Largest 2 | . 2 Hottest 40 | . 40 Shots Fired 22 | . 22 Gun 22 | . 22 Cannon . | . . Launcher . | . . Special . | . . Kinetic 22 | . 22 Thermal . | . . Explosive . | . . Electromagnetic . | . . Robot Hit Streak 6 | . 6 Robot Miss Streak 3 | . 3 Penetration Max . | . . Secondary Targets . | . . Shots Hit Robots 13 | . 13 Core Hits 5 | . 5 Critical Kills . | . . Critical Parts Destroyed 1 | . 1 Critical Strikes 1 | . 1 Destroy 1 | . 1 Melee Attacks . | . . Impact . | . . Slashing . | . . Piercing . | . . Sneak Attacks . | . . Combat Hostiles . | . . Follow-up Attacks . | . . Damage Inflicted 142 | . 142 Guns 142 | . 142 Cannons . | . . Explosions . | . . Melee . | . . Ramming . | . . Kinetic 142 | . 142 Thermal . | . . Explosive . | . . Electromagnetic . | . . Impact . | . . Slashing . | . . Piercing . | . . Highest Corruption . | . . Average Corruption . | . . Corruption Purged . | . . Corruption Blocked . | . . Overload Shots . | . . Overflow Damage . | . . Projectiles . | . . Explosions . | . . Melee . | . . Knockbacks . | . . Impact . | . . Kinetic . | . . Secondary . | . . Self-Inflicted Damage . | . . Shots . | . . Rammed . | . . Targets Rammed . | . . Kicked . | . . Crushed . | . . Highest Temperature 30 | . 30 Average Temperature 11 | . 11 Received Heat Transfer 333 | . 333 Siege Activations . | . . Robots Corrupted . | . . Combat Hostiles . | . . Parts Fried . | . . Impact Corruptions . | . . Robots Melted . | . . Combat Hostiles . | . . Parts Melted . | . . Heat Transferred . | . . Parts Sabotaged . | . . Parts Stolen . | . . Parts Stripped . | . . Power Chain Reactions . | . . Alert | -11 -10 ------- Run | Yrd Mat Peak Influence 85 | . 85 Initial . | . . Average 12 | . 15 Maximum Alert Level . | . . Low Security (%) 100 | 100 100 Level 1 . | . . Level 2 . | . . Level 3 . | . . Level 4 . | . . Level 5 . | . . High Security . | . . Max Security . | . . Squads Dispatched . | . . Investigation . | . . Extermination . | . . Reinforcement . | . . Assault . | . . Garrison . | . . Intercept . | . . Searches Triggered . | . . Construction Impeded . | . . Haulers Reinforced . | . . Active Scanning Responses . | . . Cargo Convoy Interrupts . | . . Stealth | -11 -10 --------- Run | Yrd Mat Distress Signals . | . . Communications Jammed . | . . Distress Signals . | . . Times Spotted 8 | . 8 Peak Tracking Total 7 | . 7 Tactical Retreats 1 | . 1 Traps | -11 -10 ------- Run | Yrd Mat Traps Triggered . | . . Indirectly . | . . Trap Hack Attempts . | . . Triggered . | . . Disarmed . | . . Reprogrammed . | . . Reused . | . . Traps Extracted . | . . Installed . | . . Triggered . | . . Machines | -11 -10 ---------- Run | Yrd Mat Machines Disabled . | . . Max in Single Turn . | . . Machines Repaired . | . . Machines Dismantled . | . . Machines Sabotaged . | . . Overloaded Fab Kills . | . . Hacking | -11 -10 --------- Run | Yrd Mat Machines Accessed 1 | . 1 Terminals 1 | . 1 Fabricators . | . . Repair Stations . | . . Recycling Units . | . . Scanalyzers . | . . Garrison Access . | . . Total Hacks 5 | . 5 Successful 1 | . 1 Failed 4 | . 4 Catastrophic . | . . Database Lockouts . | . . Manual 5 | . 5 Terminals 5 | . 5 Fabricators . | . . Repair Stations . | . . Recycling Units . | . . Scanalyzers . | . . Garrison Access . | . . Terminal Hacks . | . . Fabricator Hacks . | . . Repair Station Hacks . | . . Recycling Unit Hacks . | . . Scanalyzer . | . . Garrison Access Hacks . | . . Unauthorized Hacks 1 | . 1 Terminals 1 | . 1 Botnet 1 | . 1 Fabricators . | . . Repair Stations . | . . Recycling Units . | . . Scanalyzers . | . . Garrison Access . | . . Data Cores Recovered . | . . Used . | . . Hacking Detections 1 | . 1 Full Trace Events 1 | . 1 Feedback Events . | . . Feedback Blocked . | . . Robot Schematics Acquired . | . . Robots Built . | . . Authchips . | . . Time . | . . Total Robot Build Rating . | . . Part Schematics Acquired . | . . Parts Built . | . . Authchips . | . . Time . | . . Total Part Build Rating . | . . Parts Repaired . | . . Time . | . . Parts Recycled . | . . Recycled Matter . | . . Retrieved Matter . | . . Retrieved Components . | . . Parts Scanalyzed . | . . Part Schematics Acquired . | . . Parts Damaged . | . . Bothacking | -11 -10 ------------ Run | Yrd Mat Used RIF Installer . | . . Robots Hacked . | . . Non-combat . | . . Combat . | . . Robot Hacks Applied . | . . Relay Couplers Released . | . . Fabnet Peak Effective % . | . . Robots Rewired . | . . Allies Hacked . | . . Hacks Repelled . | . . Allies | -11 -10 -------- Run | Yrd Mat Total Allies . | . . Largest Group . | . . Highest-Rated Group . | . . Highest-Rated Ally . | . . Total Orders . | . . Ally Attacks . | . . Total Damage . | . . Kills . | . . Allies Corrupted . | . . Allies Melted . | . . Intel | -11 -10 ------- Run | Yrd Mat Robot Analysis Total . | . . Derelict Logs Recovered . | . . Drone Launches . | . . Drone Recoveries . | . . Exploration | -11 -10 ------------- Run | Yrd Mat Turns Passed 360 | 71 289 Spaces Moved 127 | 61 66 Core 34 | 34 . Treads 93 | 27 66 Legs . | . . Wheels . | . . Hover . | . . Flight . | . . Fastest Speed 50 | 50 160 Average Speed 168 | 98 233 Slowest Speed 240 | 160 240 Overloaded Moves . | . . Propulsion Burnouts . | . . Robots Hopped . | . . Cave-ins Triggered . | . . Exploration Rate (%) 10 | 4 16 Regions Visited 1 Branch Regions . Pre-discovered Areas . | . . Known Exits Taken . | . . Unknown Exits Taken 1 | 1 . Scrap Searched . | . . Spaces Dug . | . . Terrain Destroyed . | . . Melee . | . . Projectile . | . . AOE . | . . Terrain Rammed . | . . Walls Destroyed . | . . Machines Disabled . | . . Actions | -11 -10 --------- Run | Yrd Mat Total 253 | 71 182 Wait 100 | . 100 Move 126 | 60 66 Hop . | . . Pick Up 6 | 5 1 Fast Attach 1 | 1 . Attach 6 | 5 1 Detach 1 | . 1 Swap . | . . Drop 1 | . 1 Fire 12 | . 12 Melee . | . . Ram . | . . Kick . | . . Crush . | . . Escape Stasis . | . . Rewire . | . . Trap . | . . Miscellaneous . | . . Route ------- -11/Scrapyard -10/Materials History --------- Turn | Location | Event 2 | -11/Scrapyard | Met Revision 17 12 | -11/Scrapyard | Discovered new exit (range 14) 72 | -11/Scrapyard | Entered Materials 313 | -10/Materials | Build established: Mutant 330 | -10/Materials | Core integrity fell below 50% 356 | -10/Materials | Core integrity fell below 20% 361 | -10/Materials | Destroyed by G-47 Trooper with Particle Gun Last Messages --------------- Current location identified: Materials >>Trojan(Botnet) Trojan loaded successfully. Testing... Terminal linked with 0 systems. Awaiting botnet instructions. K-01 Serf collects debris. S-10 Pest destroyed. Destroyed Flight Unit. S-10 Pest destroyed. G-34 Mercenary suffers critical hit (Destroy). Destroyed Sml. Laser. G-34 Mercenary destroyed. Lgt. Ion Engine destroyed. Lgt. Assault Rifle destroyed. Assault Rifle destroyed. Lgt. Treads destroyed. S-10 Pest destroyed. Critical hit (Burn: +37). Lgt. Treads destroyed. Map ----- +----------------------------------------------------+ | ??????????????????????????????? | | ??????????????????????????????? | | ??????????????????????????????? | | ??????????????????????????????? | | ??????????????????????????????? | | ??????????????????????????????? | | ??????????????????????????????? | | ??????????????????????????????? | | ??????????????????????????????? | | ???????????????????????######?? | | ????????????????######## #?? | | ????????????????# # #?? | | ????????????????# # #?? | | ????????????????# + #?? | | ????????????????# ! # #?? | | ????????? ??????# # #?? | | ????????? ?????# ! # #?? | | ?????????# ??########### #?? | | ?????????# ??# # #?? | | ?????????# ??#" # #?? | | ?????????+ ?#T """ + #?? | | ?????????# ?#" """"" # #?? | | ?????????# ?# """"" # #?? | | ?????????# ?# """"" # #?? | | ?????????# # """ !# #?? | | ?????????# # # @ #?? | | ?????????# ###########* #?? | | ?????????# ###########%g= #?? | | ?????????# =g[ #?? | | ?????????# = #?? | | ?????????# T " " #?? | | ?????????# """ """ #?? | | ?????????# """ """ #?? | | ?????????# """ """ #?? | | ?????????+ "" "" #?? | | ?????????# """ """ #?? | | ?????????# "" "" #?? | | ?????????# "" "" #?? | | ????????? " "? #?? | | ???????? ?? #?? | | ??????? ? #?? | | ???????########## ?? #?? | | ????????????????? ^ ?? #?? | | ????????????????? ????"?? | | ????????????????? ? ???????? | | ??????????????????????????????? | | ??????????????????????????????? | | ??????????????????????????????? | | ??????????????????????????????? | | ??????????????????????????????? | +----------------------------------------------------+ Best States ------------- Heat Dissipation 25 Energy Generation 10 Energy Capacity 125 Matter Stores 278 Matter Capacity 300 Sight Range 16 Terrain Scan Density 10 Evasion (%) 50 Recoil Reduction 2 Item Schematics ----------------- None Robot Schematics ------------------ None Fabricated ------------ Nothing Alien Tech Used ----------------- None Achievements -------------- None Challenges ------------ None Game ------ Seed SlugImprinterChronowheel Manual? 0 Play Time 00:07:26 Cumulative 43.2 hours Start 2025.02.28 @ 13:33:37 End 2025.03.01 @ 09:52:32 Sessions 2 Manual Loads 0 Difficulty Rogue Special Mode None Game No. 60 Rogue 46 Adventurer 14 Explorer 0 Win Type - Total 0 Types 0/0/0/0/0/0/0/0/0 Lore% 19 Gallery% 33 Achievement% 35 Wizard Run 0 Options --------- Layout 1 ASCII 0 Keyboard 0 Movement Arrows Keybinds 0 Fullscreen 1 Font 24/Smallcaps Map View 50x35 Zoom Use 0% Tactical HUD 0 Map Filters NONE Filters NONE Steam 1 RUN: 58fd32a6-6d7e-45de-aa10-aa871e46416f